bitfinex-derivatives/quotes_ETHF0:USTF0_20210102
["timestamp","ask_amount","ask_price","bid_price","bid_amount"]
[1609576156891,118.53226088,731.55,731.54,0.4657]
[1609576157088,21.82256088,731.55,731.54,0.4657]
[1609576158990,10.23266556,731.55,731.54,0.4657]
[1609576160694,12.83105911,731.55,731.54,0.4657]
[1609576161596,10.23266556,731.55,731.54,0.4657]
[1609576168608,12.82992821,731.55,731.54,0.4657]
[1609576169109,10.23266556,731.55,731.54,0.4657]
[1609576171116,10.23266556,731.55,731.54,11.9263]
[1609576171315,10.23266556,731.55,731.54,0.4657]
[1609576178323,12.83263941,731.55,731.54,0.4657]
[1609576179525,10.23266556,731.55,731.54,0.4657]
[1609576180625,10.23266556,731.55,731.4,89.5983]
[1609576180826,13.48284158,731.55,731.4,89.5983]
[1609576181327,6.01438,731.41,731.4,89.5983]
[1609576182025,6.01438,731.41,731.34,3.979]
[1609576182226,9.41111728,731.41,731.34,3.979]
[1609576182627,9.41111728,731.41,731.19,3.163]
[1609576183026,9.41111728,731.41,731.18,87.7936]
[1609576183425,3.39673728,731.41,731.18,87.7936]
[1609576183626,1.9499059,731.38,731.18,87.7936]
[1609576185332,3.24939127,731.52,731.18,87.7936]
[1609576185333,6.01438,731.19,731.18,87.7936]
[1609576185631,1.95037185,731.42,731.18,87.7936]
[1609576186535,1.94954305,731.36,731.18,87.7936]
[1609576187334,6.01438,731.19,731.18,87.7936]
[1609576190737,6.01438,731.19,730.94,6.01438]
[1609576191339,6.01438,730.96,730.94,6.01438]
[1609576193543,6.01438,730.96,730.95,82.9221]
[1609576193742,6.01438,730.96,730.95,86.3451]
[1609576197245,1.94929276,731.3,730.95,86.3451]
[1609576197447,6.01438,731.23,731.02,6.01438]
[1609576197850,6.01438,731.23,731.18,89.6315]
[1609576198146,6.01438,731.23,731.02,6.01438]
[1609576198347,6.01438,731.23,731.15,114.2064]
[1609576201957,6.01438,731.23,731.02,6.01438]
[1609576202159,6.01438,731.23,731.14,97.7057]
[1609576202359,6.01438,731.23,730.95,3.423]
[1609576202559,6.01438,731.23,731.2,105.0381]
[1609576207263,1.94954122,731.35,731.2,105.0381]
[1609576207462,6.01438,731.21,731.2,105.0381]
[1609576211264,6.01438,731.21,731.06,6.01438]
[1609576211464,6.01438,731.21,731.1,80.4554]
[1609576212666,1.94954292,731.4,731.1,80.4554]
[1609576213466,6.01438,731.15,731.1,80.4554]
[1609576215169,1.94954292,731.4,731.1,80.4554]
[1609576215569,6.01438,731.21,731.1,80.4554]
[1609576217470,6.01438,731.11,731.1,80.4554]
[1609576227482,6.01438,731.11,731.1,86.46978]
[1609576243009,6.01438,731.11,730.95,3.423]
[1609576243407,6.01438,731.11,730.94,87.74]
[1609576243709,1.94119308,731.32,731.01,6.01438]
[1609576244009,1.94015975,731.31,731.01,10.20738]
[1609576244809,1.94002077,731.3,731.01,10.20738]
[1609576245511,1.93993305,731.29,731.01,10.20738]
[1609576245709,6.01438,731.07,731.01,4.193]
[1609576249520,6.01438,731.07,730.94,87.74]
[1609576249817,0.6,731.26,730.97,6.01438]
[1609576250214,0.6,731.26,730.97,10.71738]
[1609576251619,3.33366128,731.25,730.97,10.71738]
[1609576251818,6.01438,730.98,730.97,10.71738]
[1609576252019,6.01438,730.98,730.97,4.703]
[1609576253822,6.01438,730.98,730.8,84.1039]
[1609576254223,6.01438,730.98,730.66,6.01438]
[1609576254423,77.3549,730.94,730.66,6.01438]
[1609576254622,92.3549,730.94,730.48,77.9763]
[1609576255022,77.3549,730.94,730.48,77.9763]
[1609576255424,92.3549,730.94,730.48,77.9763]
[1609576255824,6.01438,730.55,730.48,77.9763]
[1609576257523,6.01438,730.55,730.2,15.02515764]
[1609576257724,111.2839,730.49,730.13,84.1321]
[1609576257925,111.2839,730.49,730.14,6.01438]
[1609576258125,111.2839,730.49,730.14,9.67938]
[1609576260029,6.01438,730.34,730.14,9.67938]
[1609576261430,95.3548,730.28,730.14,3.665]
[1609576262029,6.01438,730.15,730.14,3.665]
[1609576263231,6.01438,730.15,730.05,6.01438]
[1609576263630,6.01438,730.15,729.9,15.03210714]
[1609576264030,6.01438,729.99,729.9,15.03210714]
[1609576268139,6.01438,729.99,729.81,6.01438]
[1609576268338,6.01438,729.99,729.97,88.6158]
[1609576268539,6.01438,729.99,729.97,92.2328]
[1609576269240,6.01438,729.99,729.97,3.617]
[1609576271942,85.3955,730.23,729.97,3.617]
[1609576272143,88.9351,729.98,729.97,3.617]
[1609576272543,94.94948,729.98,729.97,3.617]
[1609576272742,6.01438,729.98,729.97,3.617]
[1609576273746,6.01438,729.98,729.86,79.7265]
[1609576274544,6.01438,729.98,729.93,6.01438]
[1609576274744,6.01438,729.98,729.93,10.63038]
[1609576275346,4.551,730.39,729.93,10.63038]
[1609576275747,4.551,730.39,730.11,98.8869]
[1609576276148,1.91679469,730.38,730.11,98.8869]
[1609576276549,6.01438,730.12,730.11,98.8869]
[1609576278250,4.551,730.39,730.11,98.8869]
[1609576278452,1.92296138,730.44,729.93,4.616]
[1609576278453,1.92296138,730.44,730.24,6.01438]
[1609576278651,6.01438,730.47,730.24,6.01438]
[1609576278652,6.01438,730.47,730.37,114.1906]
[1609576279656,1.92532254,730.64,730.37,114.1906]
[1609576279856,1.92495428,730.69,730.24,21.01438]
[1609576280055,1.92495428,730.69,730.56,99.3663]
[1609576280258,1.9256948,730.75,730.24,21.01438]
[1609576280456,1.9256948,730.75,730.63,112.6038]
[1609576281256,1.9256948,730.75,730.6,6.01438]
[1609576281459,7.94011812,730.76,730.51,4.489]
[1609576282562,6.01438,730.61,730.51,4.489]
[1609576284563,6.01438,730.52,730.51,4.489]
[1609576286163,6.01438,730.52,730.49,77.7232]
[1609576289169,6.01438,730.52,730.25,6.01438]
[1609576290371,6.01438,730.52,730.23,3.762]
[1609576290571,6.01438,730.24,730.08,3.387]
[1609576290770,6.01438,730.24,730.07,6.01438]
[1609576293575,6.01438,730.24,730.03,79.9723]
[1609576294575,6.01438,730.04,730.03,79.9723]
[1609576297978,6.01438,730.04,729.87,6.01438]
[1609576298179,1.92383951,730.48,729.87,6.01438]
[1609576298378,1.92383951,730.48,729.87,9.46738]
[1609576298578,6.01438,729.88,729.87,3.453]
[1609576303384,6.01438,729.88,729.68,105.1415]
[1609576304182,1.92360744,730.29,729.68,105.1415]
[1609576304383,1.92360744,730.29,729.68,109.5175]
[1609576304583,6.01438,729.97,729.72,6.01438]
[1609576306584,6.01438,729.82,729.72,6.01438]
[1609576306783,12.1546,730.31,729.72,6.01438]
[1609576307185,1.92228752,730.3,729.72,6.01438]
[1609576307784,1.92228752,730.3,729.72,18.15968]
[1609576308686,6.01438,730.07,729.84,6.01438]
[1609576310587,6.01438,729.93,729.84,6.01438]
[1609576311588,4.473,730.38,729.84,6.01438]
[1609576311788,1.92561883,730.41,729.84,10.11638]
[1609576312593,6.01438,730.15,729.84,10.11638]
[1609576314595,6.01438,730.01,729.84,10.11638]
[1609576316099,4.565,730.37,729.84,10.11638]
[1609576316601,6.01438,730.1,729.92,6.01438]
[1609576317101,4.565,730.37,729.92,6.01438]
[1609576318101,1.9250008,730.42,729.92,6.01438]
[1609576318501,1.92542804,730.48,729.92,6.01438]
[1609576318704,6.01438,730.25,730.14,6.01438]
[1609576320505,1.92849648,730.54,730.14,6.01438]
[1609576320706,6.01438,730.33,730.14,9.50238]
[1609576321408,1.92905324,730.6,730.16,13.8961]
[1609576321609,1.92905324,730.6,730.17,15.0]
[1609576321807,1.92905324,730.6,730.29,77.914]
[1609576322007,1.92921255,730.61,730.29,82.706]
[1609576322608,6.01438,730.54,730.35,6.01438]
[1609576326716,1.92898605,730.71,730.44,6.01438]
[1609576326917,1.92898605,730.71,730.58,13.8485]
[1609576327117,1.92912083,730.78,730.44,24.67838]
[1609576327319,5.72615692,730.84,730.56,88.9196]
[1609576327720,1.92978372,730.89,730.56,88.9196]
[1609576328717,6.01438,730.86,730.8,6.01438]
[1609576328917,6.01438,730.86,730.56,88.9196]
[1609576330019,1.92769316,730.84,730.56,88.9196]
[1609576330818,1.92769316,730.84,730.66,6.01438]
[1609576333923,1.92721611,730.8,730.66,6.01438]
[1609576334520,1.92721611,730.8,730.6,4.844]
[1609576334720,6.01438,730.64,730.6,4.844]
[1609576336023,1.92679364,730.81,730.6,4.844]
[1609576336229,1.92679364,730.81,730.56,88.9196]
[1609576336427,1.92663835,730.8,730.56,88.9196]
[1609576336823,1.92663835,730.8,730.66,6.01438]
[1609576338323,1.92663835,730.8,730.59,4.182]
[1609576340927,1.92663835,730.8,730.63,6.01438]
[1609576342028,1.92662373,730.81,730.63,6.01438]
[1609576342533,1.92415687,730.88,730.63,6.01438]
[1609576342835,6.01438,730.86,730.77,6.01438]
[1609576343836,3.31322762,730.85,730.77,6.01438]
[1609576344643,6.01438,730.86,730.77,6.01438]
[1609576348042,3.8939505,730.85,730.77,6.01438]
[1609576348541,3.8939505,730.85,730.59,4.182]
[1609576348942,6.01438,730.76,730.57,6.01438]
[1609576351250,6.01438,730.76,730.44,3.664]
[1609576351448,6.01438,730.76,730.29,4.792]
[1609576351851,6.01438,730.76,730.23,77.8047]
[1609576352649,5.81133392,730.75,730.23,77.8047]
[1609576352849,6.01438,730.49,730.4,6.01438]
[1609576355351,6.01438,730.49,730.23,77.8047]
[1609576356951,6.01438,730.49,730.42,6.01438]
[1609576357452,6.01438,730.49,730.42,10.93338]
[1609576360953,1.92187443,730.77,730.42,4.919]
[1609576361353,1.92187443,730.77,730.6,6.01438]
[1609576362855,1.92164996,730.78,730.42,4.919]
[1609576363255,1.92164996,730.78,730.24,114.1586]
[1609576363456,6.01438,730.61,730.42,6.01438]
[1609576365356,6.01438,730.51,730.42,6.01438]
[1609576367159,6.01438,730.51,730.24,114.1586]
[1609576367362,6.01438,730.51,730.37,6.01438]
[1609576367560,6.01438,730.51,730.37,10.92438]
[1609576371565,1.92070796,730.73,730.47,6.01438]
[1609576371763,1.92070796,730.73,730.37,4.91]
[1609576372664,1.91915986,730.71,730.37,4.91]
[1609576372864,1.91915986,730.71,730.24,114.1586]
[1609576373564,1.91915986,730.71,730.38,6.01438]
[1609576373764,1.91915986,730.71,730.38,10.34538]
[1609576374165,1.91866375,730.7,730.38,10.34538]
[1609576375165,1.91826151,730.73,730.38,22.38978]
[1609576375364,1.91826151,730.73,730.38,10.34538]
[1609576375566,6.01438,730.64,730.49,6.01438]
[1609576375765,6.01438,730.64,730.49,119.76218]
[1609576377665,6.01438,730.64,730.58,6.01438]
[1609576378968,1.91681037,730.79,730.63,93.2014]
[1609576379168,1.91623461,730.8,730.63,93.2014]
[1609576379568,1.91623461,730.8,730.79,6.01438]
[1609576379769,10.60638,730.86,730.79,6.01438]
[1609576379770,10.60638,730.86,730.79,19.55728]
[1609576381868,6.01438,730.86,730.79,19.55728]
[1609576382269,4.289,731.02,730.79,19.55728]
[1609576382471,1.91850474,731.03,730.79,19.55728]
[1609576383574,1.91850474,731.03,731.01,6.01438]
[1609576384075,1.91891673,731.05,731.01,6.01438]
[1609576385774,1.91915915,731.08,731.01,6.01438]
[1609576386775,1.91823551,731.09,731.01,6.01438]
[1609576388175,1.91835746,731.1,731.01,6.01438]
[1609576389576,1.91835746,731.1,731.09,6.01438]
[1609576389977,1.91973314,731.11,731.09,6.01438]
[1609576390680,1.91952652,731.1,731.09,6.01438]
[1609576391277,3.85855172,731.12,731.09,6.01438]
[1609576392376,6.01438,731.13,731.09,6.01438]
[1609576393580,1.92039241,731.2,731.09,6.01438]
[1609576393984,1.92008835,731.19,731.09,6.01438]
[1609576395384,1.92008835,731.19,731.09,21.01438]
[1609576395583,1.92008835,731.19,731.18,89.7617]
[1609576395783,1.92008835,731.19,731.18,95.77608]
[1609576397393,3.8389418,731.31,731.18,95.77608]
[1609576397792,3.8389418,731.31,731.3,6.01438]
[1609576398993,1.92307095,731.44,731.31,81.5862]
[1609576399493,3.20511826,731.59,731.31,81.5862]
[1609576399494,1.92373588,731.51,731.31,81.5862]
[1609576399694,1.92373588,731.51,731.5,6.01438]
[1609576400295,1.92393089,731.52,731.5,6.01438]
[1609576401096,2.56378309,731.55,731.5,6.01438]
[1609576403096,3.79447209,731.55,731.5,6.01438]
[1609576404099,3.79447209,731.55,731.31,81.5862]
[1609576404296,6.35602513,731.55,731.31,81.5862]
[1609576404998,1.92101217,731.5,731.31,81.5862]
[1609576405797,1.92101217,731.5,731.49,6.01438]
[1609576407099,1.92198965,731.54,731.49,6.01438]
[1609576407699,6.01438,731.5,731.4,3.541]
[1609576408700,9.82123134,731.5,731.4,3.541]
[1609576409699,6.01438,731.41,731.4,3.541]
[1609576410902,1.92086514,731.45,731.4,3.541]
[1609576411302,1.92070256,731.44,731.4,3.541]
[1609576411701,6.01438,731.41,731.4,3.541]
[1609576411901,6.01438,731.41,731.35,6.01438]
[1609576412901,6.01438,731.41,731.34,110.0147]
[1609576413103,1.92070256,731.44,731.34,110.0147]
[1609576413301,1.92050926,731.45,731.34,110.0147]
[1609576414201,1.92006261,731.42,731.34,110.0147]
[1609576415902,6.01438,731.35,731.34,110.0147]
[1609576416802,1.92006261,731.42,731.34,110.0147]
[1609576417804,1.92006261,731.42,731.41,6.01438]
[1609576418505,1.92006261,731.42,731.34,110.0147]
[1609576418705,6.01438,731.62,731.34,110.0147]
[1609576418706,1.92081495,731.43,731.34,110.0147]
[1609576419707,1.9216682,731.47,731.34,110.0147]
[1609576419906,1.9216682,731.47,731.42,6.01438]
[1609576421807,7.9360482,731.47,731.42,6.01438]
[1609576422008,6.01438,731.47,731.42,6.01438]
[1609576422207,5.71787318,731.5,731.42,6.01438]
[1609576424412,1.92263133,731.54,731.42,6.01438]
[1609576425213,3.80024741,731.54,731.42,6.01438]
[1609576425413,3.80024741,731.54,731.53,93.3759]
[1609576425812,3.80024741,731.54,731.53,99.39028]
[1609576426613,3.80024741,731.54,731.53,103.36128]
[1609576427014,1.92388866,731.65,731.53,103.36128]
[1609576427714,1.92190934,731.68,731.53,103.36128]
[1609576427914,1.92190934,731.68,731.67,6.01438]
[1609576429217,1.92182427,731.7,731.67,6.01438]
[1609576430219,6.01438,731.87,731.67,6.01438]
[1609576430220,1.92185047,731.68,731.67,6.01438]
[1609576430620,1.92185047,731.68,731.53,3.971]
[1609576431022,1.9200029,731.7,731.53,3.971]
[1609576431823,1.9200029,731.7,731.38,3.023]
[1609576431824,6.01438,731.54,731.45,6.01438]
[1609576432023,6.01438,731.54,731.38,3.023]
[1609576432423,6.01438,731.54,731.33,76.8059]
[1609576433425,1.91762447,731.52,731.33,76.8059]
[1609576433825,6.01438,731.34,731.33,76.8059]
[1609576436127,1.9155303,731.46,731.33,76.8059]
[1609576437929,6.01438,731.41,731.33,76.8059]
[1609576444738,1.91485442,731.52,731.33,76.8059]
[1609576444939,1.91979748,731.58,731.33,76.8059]
[1609576445840,1.91979748,731.58,731.36,6.01438]
[1609576446240,3.878,731.63,731.36,6.01438]
[1609576446440,3.56014528,731.62,731.36,6.01438]
[1609576447343,1.92084679,731.65,731.36,6.01438]
[1609576447940,6.01438,731.37,731.36,6.01438]
[1609576452446,1.92073906,731.67,731.36,6.01438]
[1609576452644,1.92073906,731.67,731.36,93.71648]
[1609576453545,1.92245447,731.69,731.36,93.71648]
[1609576453945,1.92245447,731.69,731.68,6.01438]
[1609576454146,1.92245447,731.69,731.68,20.87858]
[1609576454850,1.92401653,731.78,731.68,20.87858]
[1609576455546,6.13175121,731.85,731.68,20.87858]
[1609576455547,1.92489585,731.83,731.68,20.87858]
[1609576455947,1.92489585,731.83,731.82,6.01438]
[1609576456147,3.56639583,731.85,731.82,6.01438]
[1609576456148,1.92502296,731.84,731.82,6.01438]
[1609576456347,1.92502296,731.84,731.82,21.67418]
[1609576456747,1.92502296,731.84,731.82,15.6598]
[1609576461352,1.92502296,731.84,731.79,6.01438]
[1609576461553,1.92502296,731.84,731.83,78.7329]
[1609576462652,3.56639583,731.85,731.83,78.7329]
[1609576465459,6.01438,731.86,731.83,78.7329]
[1609576470163,6.00522022,731.86,731.83,78.7329]
[1609576470965,1.92944507,732.01,731.83,78.7329]
[1609576471870,7.33874178,732.16,731.83,78.7329]
[1609576471871,1.92968603,732.03,731.83,78.7329]
[1609576472067,1.92968603,732.03,732.02,6.01438]
[1609576473068,1.93042875,732.06,732.02,6.01438]
[1609576473868,6.01438,732.07,732.02,6.01438]
[1609576475072,3.43474997,732.06,732.02,6.01438]
[1609576475268,3.43474997,732.06,731.96,99.1304]
[1609576475968,3.43474997,732.06,731.96,105.14478]
[1609576477971,3.43474997,732.06,732.05,6.01438]
[1609576480675,6.01438,732.07,732.05,6.01438]
[1609576482175,1.93244049,732.12,732.05,6.01438]
[1609576482375,1.93244049,732.12,732.06,106.3303]
[1609576484276,1.93649441,732.35,732.06,106.3303]
[1609576485176,1.93712211,732.41,732.06,106.3303]
[1609576486076,1.93712211,732.41,732.4,6.01438]
[1609576486980,2.58282949,732.48,732.4,6.01438]
[1609576487479,2.58282949,732.48,732.41,12.9401]
[1609576489283,0.9510303,732.54,732.41,12.9401]
[1609576489488,1.93731268,732.42,732.41,12.9401]
[1609576489885,1.93731268,732.42,732.4,6.01438]
[1609576491088,1.93858889,732.47,732.4,6.01438]
[1609576491991,6.01438,732.53,732.4,6.01438]
[1609576492189,6.01438,732.42,732.4,6.01438]
[1609576492391,7.95232014,732.42,732.4,6.01438]
[1609576493692,3.20515579,732.41,732.4,6.01438]
[1609576495595,5.14307384,732.41,732.4,6.01438]
[1609576497897,3.20515579,732.41,732.4,6.01438]
[1609576499000,3.20515579,732.41,732.35,114.3343]
[1609576499200,7.95119312,732.42,732.35,114.3343]
[1609576499201,6.01438,732.42,732.35,114.3343]
[1609576500103,6.01438,732.42,732.37,6.01438]
[1609576501802,1.93744514,732.46,732.37,6.01438]
[1609576502101,6.01438,732.43,732.37,6.01438]
[1609576502302,1.93744514,732.46,732.37,6.01438]
[1609576504104,6.01438,732.41,732.37,6.01438]
[1609576504305,1.93744514,732.46,732.37,6.01438]
[1609576504505,1.93744514,732.46,732.4,81.4873]
[1609576506105,1.93744514,732.46,732.45,6.01438]
[1609576508411,1.93714098,732.48,732.45,6.01438]
[1609576510609,6.01438,732.54,732.38,3.527]
[1609576510808,6.01438,732.54,732.29,93.1807]
[1609576512211,6.01438,732.36,732.29,93.1807]
[1609576513612,6.01438,732.36,732.23,4.846]
[1609576513810,21.01438,732.36,732.02,111.8289]
[1609576514213,6.01438,732.28,732.02,111.8289]
[1609576516216,6.01438,732.16,732.02,111.8289]
[1609576524226,6.01438,732.03,732.02,111.8289]
[1609576524728,1.93598529,732.33,732.02,111.8289]
[1609576525827,1.93598529,732.33,731.99,6.01438]
[1609576526028,1.93596126,732.31,731.99,6.01438]
[1609576526228,6.01438,732.0,731.91,6.01438]
[1609576528232,6.01438,732.09,731.91,6.01438]
[1609576529032,6.01438,732.09,731.76,80.46]
[1609576530335,6.01438,731.91,731.76,80.46]
[1609576532237,6.01438,731.83,731.76,80.46]
[1609576533140,1.93776442,732.15,731.76,80.46]
[1609576533340,1.93776442,732.15,731.76,84.975]
[1609576533741,0.6,731.83,731.76,84.975]
[1609576534242,0.6,731.83,731.82,6.01438]
[1609576557670,0.6,731.83,731.82,111.14948]
[1609576558772,0.6,731.83,731.82,6.01438]
[1609576560779,0.6,731.83,731.82,17.28708]
[1609576563875,0.6,731.83,731.82,11.2727]
[1609576564676,0.6,731.83,731.82,17.28708]
[1609576567276,0.6,731.83,731.82,6.01438]
[1609576569078,0.6,731.83,731.82,88.09038]
[1609576584597,0.6,731.83,731.82,82.076]
[1609576585198,0.6,731.83,731.82,88.09038]
[1609576595412,6.01438,732.0,731.82,88.09038]
[1609576597611,6.01438,732.0,731.99,6.01438]
[1609576597812,6.01438,732.0,731.99,22.37918]
[1609576598612,6.01438,732.0,731.99,21.77918]
[1609576608022,15.0,732.33,731.99,16.3648]
[1609576609725,15.0,732.33,732.06,6.01438]
[1609576611729,6.01438,732.07,732.06,6.01438]
[1609576618636,6.01438,732.07,732.06,17.80918]
[1609576628346,15.0,732.48,732.06,11.7948]
[1609576629047,6.01438,732.07,732.06,17.80918]
[1609576630945,1.95407323,732.5,732.06,11.7948]
[1609576631445,6.01438,732.07,732.06,17.80918]
[1609576634048,6.01438,732.07,732.06,6.01438]
[1609576635251,6.01438,732.07,732.06,108.18818]
[1609576653567,3.672,732.49,732.06,102.1738]
[1609576653767,1.96040749,732.56,731.98,4.471]
[1609576653969,1.96040749,732.56,732.23,93.9657]
[1609576654168,6.01438,732.24,732.1,4.321]
[1609576654568,6.01438,732.24,732.23,83.6407]
[1609576664179,1.96366257,732.66,732.23,83.6407]
[1609576664380,6.01438,732.37,732.24,6.01438]
[1609576664783,1.96398698,732.67,732.24,6.01438]
[1609576664980,1.96398698,732.67,732.51,104.8465]
[1609576665983,3.683,732.74,732.51,104.8465]
[1609576666180,1.96542654,732.75,732.51,104.8465]
[1609576666481,6.01438,732.52,732.51,104.8465]
[1609576674885,6.01438,732.52,732.48,6.01438]
[1609576675087,6.01438,732.52,732.49,87.16]
[1609576682795,6.01438,732.52,732.48,6.01438]
[1609576682995,6.01438,732.52,732.51,106.9757]
[1609576684495,4.416,732.68,732.51,106.9757]
[1609576684897,1.96997334,732.82,732.51,106.9757]
[1609576685098,6.01438,732.52,732.48,6.01438]
[1609576685296,6.01438,732.52,732.51,106.5041]
[1609576686798,5.64828,732.52,732.51,106.5041]
[1609576692407,5.64828,732.52,732.48,6.01438]
[1609576693812,5.64828,732.52,732.48,21.95568]
[1609576694010,5.64828,732.52,732.48,6.01438]
[1609576694214,5.64828,732.52,732.51,105.6927]
[1609576705017,4.367,732.79,732.51,105.6927]
[1609576705617,1.96936629,732.86,732.52,6.01438]
[1609576706622,1.96936629,732.86,732.51,105.6927]
[1609576707020,4.97336629,732.86,732.51,105.6927]
[1609576707622,4.97336629,732.86,732.52,6.01438]
[1609576708024,4.97336629,732.86,732.51,105.6927]
[1609576709726,4.97336629,732.86,732.52,6.01438]
[1609576710528,5.14397325,732.85,732.52,6.01438]
[1609576711729,5.14397325,732.85,732.51,105.6927]
[1609576711929,1.97095077,732.84,732.51,105.6927]
[1609576712231,1.97095077,732.84,732.52,6.01438]
[1609576712730,5.1465255,732.84,732.52,6.01438]
[1609576713930,1.97095077,732.84,732.52,6.01438]
[1609576714330,6.01438,732.53,732.52,6.01438]
[1609576721857,3.004,732.86,732.51,105.6927]
[1609576722257,1.96607909,732.88,732.51,108.9267]
[1609576722460,1.96607909,732.88,732.52,6.01438]
[1609576723662,1.96607909,732.88,732.51,108.9267]
[1609576724460,1.96607909,732.88,732.52,6.01438]
[1609576726463,6.01438,732.53,732.52,6.01438]
[1609576727766,6.01438,732.53,732.51,3.234]
[1609576727964,6.01438,732.53,732.35,4.509]
[1609576728166,6.01438,732.53,732.19,84.2004]
[1609576728567,6.01438,732.32,732.19,84.2004]
[1609576730572,6.01438,732.24,732.22,6.01438]
[1609576731172,6.01438,732.24,732.19,84.2004]
[1609576739185,6.01438,732.24,732.11,6.01438]
[1609576739388,15.0,732.23,732.11,6.01438]
[1609576739585,15.0,732.23,732.1,4.321]
[1609576739785,15.0,732.23,731.85,14.98642374]
[1609576740389,15.0,732.23,731.83,100.58805492]
[1609576740589,6.01438,731.89,731.86,6.01438]
[1609576743792,112.926,732.34,731.86,6.01438]
[1609576743992,1.9662657,732.45,731.86,6.01438]
[1609576744192,1.9662657,732.45,732.01,81.4487]
[1609576744694,6.01438,732.2,732.02,6.01438]
[1609576750799,1.96752144,732.51,732.15,6.01438]
[1609576751001,12.1002,732.55,732.29,11.2821]
[1609576751002,1.96808533,732.52,732.29,11.2821]
[1609576751200,1.96808533,732.52,732.15,10.59938]
[1609576751400,12.1002,732.55,732.28,81.0834]
[1609576751600,12.1002,732.55,732.15,10.59938]
[1609576751800,12.1002,732.55,732.26,83.6553]
[1609576752000,3.102,732.57,732.26,83.6553]
[1609576752200,1.96913106,732.59,732.15,10.59938]
[1609576752402,15.0,732.7,732.15,10.59938]
[1609576752403,1.96882661,732.6,732.34,94.8291]
[1609576752700,6.01438,732.35,732.34,94.8291]
[1609576754303,1.96963019,732.65,732.34,94.8291]
[1609576754502,1.96951589,732.66,732.34,94.8291]
[1609576754703,6.01438,732.47,732.34,94.8291]
[1609576756805,1.96956558,732.7,732.4,6.01438]
[1609576758707,1.96956558,732.7,732.48,6.01438]
[1609576758909,1.96956558,732.7,732.52,16.3354]
[1609576760812,6.01438,732.53,732.52,22.34978]
[1609576771629,4.919,732.76,732.52,16.3354]
[1609576771829,1.97154857,732.81,732.52,16.3354]
[1609576773229,6.01438,732.53,732.52,22.34978]
[1609576773629,1.97154857,732.81,732.52,16.3354]
[1609576774032,2.62897167,732.89,732.52,16.3354]
[1609576774033,1.97181043,732.82,732.52,16.3354]
[1609576775136,1.97181043,732.82,732.5,3.468]
[1609576775340,1.97181043,732.82,732.52,6.01438]
[1609576775536,1.97181043,732.82,732.67,111.7351]
[1609576777242,6.01438,732.68,732.67,111.7351]
[1609576780345,1.97208063,732.84,732.67,111.7351]
[1609576781446,6.01438,732.68,732.67,111.7351]
[1609576782147,1.97208063,732.84,732.67,111.7351]
[1609576783349,6.01438,732.68,732.67,111.7351]
[1609576786953,6.01438,732.68,732.52,6.01438]
[1609576787656,6.01438,732.53,732.52,6.01438]
[1609576788455,6.01438,732.53,732.52,108.80418]
[1609576792860,1.97387128,732.83,732.52,102.7898]
[1609576793462,1.97469652,732.85,732.52,102.7898]
[1609576793761,6.01438,732.53,732.52,108.80418]
[1609576796065,1.97469652,732.85,732.52,102.7898]
[1609576796265,1.9753159,732.84,732.52,102.7898]
[1609576796665,6.01438,732.53,732.52,108.80418]
[1609576802884,1.97548469,732.87,732.52,102.7898]
[1609576803086,1.97615653,732.91,732.52,102.7898]
[1609576803385,6.01438,732.53,732.52,108.80418]
[1609576807095,3.436,732.93,732.52,123.80418]
[1609576807293,1.97624496,732.95,732.52,123.80418]
[1609576807493,1.97624496,732.95,732.94,14.2411]
[1609576809796,1.97624496,732.95,732.87,6.01438]
[1609576809797,1.97770657,733.12,732.87,6.01438]
[1609576809995,1.97770657,733.12,732.92,112.5421]